[Event "*** Titled Tuesday 3|2 Blitz"]
[Site "Chess.com"]
[Date "2017.03.07"]
[Round "3"]
[White "macko06"]
[Black "Alex_Molchanov"]
[Result "0-1"]
[WhiteElo "2323"]
[BlackElo "2476"]
[TimeControl "180+2"]
[EndTime "13:40:50 PST"]
[Termination "Alex_Molchanov won by checkmate"]

1. e4 {[%clk 0:03:02]} 1... c6 {[%clk 0:03:00.5]} 2. d4 {[%clk 0:03:02.8]} 2...
d5 {[%clk 0:03:02.4]} 3. e5 {[%clk 0:03:04.3]} 3... Bf5 {[%clk 0:02:59.5]} 4.
Nf3 {[%clk 0:03:05.5]} 4... e6 {[%clk 0:03:00.3]} 5. Be2 {[%clk 0:03:06.4]} 5...
Ne7 {[%clk 0:03:01.1]} 6. O-O {[%clk 0:03:07.3]} 6... h6 {[%clk 0:03:02.1]} 7.
Nbd2 {[%clk 0:03:08.5]} 7... Nd7 {[%clk 0:03:02.8]} 8. Nb3 {[%clk 0:03:09.7]}
8... Bg6 {[%clk 0:03:01.9]} 9. a4 {[%clk 0:03:09.9]} 9... Nf5 {[%clk 0:02:59.2]}
10. a5 {[%clk 0:03:09.6]} 10... Be7 {[%clk 0:02:58.8]} 11. a6 {[%clk 0:02:55.6]}
11... b6 {[%clk 0:02:59.2]} 12. c4 {[%clk 0:02:56.2]} 12... O-O {[%clk
0:02:54.5]} 13. Bd2 {[%clk 0:02:49.3]} 13... Rc8 {[%clk 0:02:50.4]} 14. Rc1
{[%clk 0:02:45.5]} 14... Nb8 {[%clk 0:02:45.1]} 15. h3 {[%clk 0:02:44.1]} 15...
dxc4 {[%clk 0:02:42.8]} 16. Bxc4 {[%clk 0:02:45.1]} 16... b5 {[%clk 0:02:43.7]}
17. Be2 {[%clk 0:02:42.7]} 17... Nxa6 {[%clk 0:02:42.4]} 18. Ra1 {[%clk
0:01:48.2]} 18... Qb6 {[%clk 0:02:35.3]} 19. g4 {[%clk 0:01:48.9]} 19... Nh4
{[%clk 0:02:33.6]} 20. Nxh4 {[%clk 0:01:50.2]} 20... Bxh4 {[%clk 0:02:34.5]} 21.
Ba5 {[%clk 0:01:49.1]} 21... Qb8 {[%clk 0:02:27.4]} 22. Bf3 {[%clk 0:01:47.6]}
22... c5 {[%clk 0:02:14.7]} 23. Bc3 {[%clk 0:01:39]} 23... cxd4 {[%clk
0:02:08.2]} 24. Bxd4 {[%clk 0:01:36.4]} 24... Nb4 {[%clk 0:02:05.7]} 25. Nc5
{[%clk 0:01:16.5]} 25... Rcd8 {[%clk 0:01:12.3]} 26. Na6 {[%clk 0:00:39.5]}
26... Qc8 {[%clk 0:01:12.6]} 27. Nxb4 {[%clk 0:00:38.4]} 27... Qc4 {[%clk
0:01:10.4]} 28. Nc6 {[%clk 0:00:38.8]} 28... Bc2 {[%clk 0:01:00]} 29. Qd2 {[%clk
0:00:33.9]} 29... Rc8 {[%clk 0:00:42.1]} 30. Rac1 {[%clk 0:00:25.6]} 30... Qb3
{[%clk 0:00:26.8]} 31. Qc3 {[%clk 0:00:20.2]} 31... Qxc3 {[%clk 0:00:19.4]} 32.
bxc3 {[%clk 0:00:21.4]} 32... Ba4 {[%clk 0:00:16]} 33. Nxa7 {[%clk 0:00:21.6]}
33... Rc7 {[%clk 0:00:16]} 34. Nc6 {[%clk 0:00:22.6]} 34... Rfc8 {[%clk
0:00:16.5]} 35. Nb4 {[%clk 0:00:23.6]} 35... Kf8 {[%clk 0:00:16.1]} 36. Rfe1
{[%clk 0:00:21]} 36... Be7 {[%clk 0:00:16.6]} 37. Rb1 {[%clk 0:00:19.8]} 37...
Bg5 {[%clk 0:00:14.2]} 38. Rb2 {[%clk 0:00:20.5]} 38... Rc4 {[%clk 0:00:13.6]}
39. Be4 {[%clk 0:00:20.9]} 39... Be7 {[%clk 0:00:14.7]} 40. Bd3 {[%clk
0:00:21.6]} 40... R4c7 {[%clk 0:00:15.6]} 41. f4 {[%clk 0:00:22.4]} 41... Rd8
{[%clk 0:00:15.9]} 42. Kf2 {[%clk 0:00:18.6]} 42... Bh4+ {[%clk 0:00:16.2]} 43.
Ke2 {[%clk 0:00:18.6]} 43... Bxe1 {[%clk 0:00:17.9]} 44. Kxe1 {[%clk 0:00:20.3]}
44... Rcc8 {[%clk 0:00:17.2]} 45. Kd2 {[%clk 0:00:21.8]} 45... Rd7 {[%clk
0:00:18.1]} 46. Ke3 {[%clk 0:00:23.2]} 46... Rcd8 {[%clk 0:00:18.5]} 47. Bc5+
{[%clk 0:00:24]} 47... Kg8 {[%clk 0:00:19.4]} 48. Bd6 {[%clk 0:00:24.8]} 48...
f6 {[%clk 0:00:19.9]} 49. Nc6 {[%clk 0:00:25]} 49... Ra8 {[%clk 0:00:19.7]} 50.
Be4 {[%clk 0:00:25.7]} 50... Kf7 {[%clk 0:00:19.9]} 51. Nd4 {[%clk 0:00:25.3]}
51... Rc8 {[%clk 0:00:19.6]} 52. Bc6 {[%clk 0:00:25]} 52... Rdd8 {[%clk
0:00:19.2]} 53. Nxb5 {[%clk 0:00:25.1]} 53... Rxc6 {[%clk 0:00:19.2]} 54. Kd4
{[%clk 0:00:22.2]} 54... Rdc8 {[%clk 0:00:18.2]} 55. Rb4 {[%clk 0:00:19.6]}
55... Bxb5 {[%clk 0:00:17.7]} 56. Rxb5 {[%clk 0:00:21]} 56... Rxc3 {[%clk
0:00:17.9]} 57. Rb7+ {[%clk 0:00:20.7]} 57... Kg6 {[%clk 0:00:18.3]} 58. h4
{[%clk 0:00:21.6]} 58... R8c4# {[%clk 0:00:18.7]} 0-1

[Event "*** Titled Tuesday 3|2 Blitz"]
[Site "Chess.com"]
[Date "2017.03.07"]
[Round "3"]
[White "Saitama_Hero"]
[Black "mwpchess"]
[Result "0-1"]
[WhiteElo "2221"]
[BlackElo "2407"]
[TimeControl "180+2"]
[EndTime "13:40:56 PST"]
[Termination "mwpchess won by resignation"]

1. d4 {[%clk 0:03:02]} 1... Nf6 {[%clk 0:02:36.8]} 2. Nf3 {[%clk 0:03:01.7]}
2... d5 {[%clk 0:02:37]} 3. c4 {[%clk 0:03:00.3]} 3... e6 {[%clk 0:02:37.2]} 4.
Nc3 {[%clk 0:03:01.5]} 4... dxc4 {[%clk 0:02:36.6]} 5. e3 {[%clk 0:02:59.3]}
5... a6 {[%clk 0:02:36.6]} 6. Bxc4 {[%clk 0:02:51.1]} 6... b5 {[%clk 0:02:36.7]}
7. Bb3 {[%clk 0:02:52.5]} 7... Bb7 {[%clk 0:02:37.1]} 8. Ne2 {[%clk 0:02:50.6]}
8... c5 {[%clk 0:02:36.7]} 9. Nf4 {[%clk 0:02:45.7]} 9... cxd4 {[%clk
0:02:36.3]} 10. exd4 {[%clk 0:02:39.9]} 10... Bb4+ {[%clk 0:02:36]} 11. Bd2
{[%clk 0:02:31.4]} 11... Bxd2+ {[%clk 0:02:36.2]} 12. Qxd2 {[%clk 0:02:33.3]}
12... Bxf3 {[%clk 0:02:34.1]} 13. gxf3 {[%clk 0:02:35.2]} 13... O-O {[%clk
0:02:34]} 14. Rg1 {[%clk 0:02:34]} 14... Nc6 {[%clk 0:02:31.2]} 15. O-O-O {[%clk
0:02:30.4]} 15... Qxd4 {[%clk 0:02:14.3]} 16. Qxd4 {[%clk 0:02:24.1]} 16... Nxd4
{[%clk 0:02:14.4]} 17. Rxd4 {[%clk 0:02:25.7]} 17... e5 {[%clk 0:02:15.1]} 18.
Rd6 {[%clk 0:02:27.1]} 18... Ne8 {[%clk 0:02:15.2]} 19. Rd7 {[%clk 0:01:41.8]}
19... exf4 {[%clk 0:02:14.6]} 20. Rd4 {[%clk 0:01:31.5]} 20... Rc8+ {[%clk
0:01:57.2]} 21. Kb1 {[%clk 0:01:31.5]} 21... g6 {[%clk 0:01:56.4]} 22. Rxf4
{[%clk 0:01:32.6]} 22... Kg7 {[%clk 0:01:56]} 23. h4 {[%clk 0:01:31.6]} 23...
Nf6 {[%clk 0:01:52.5]} 24. Rd1 {[%clk 0:01:26.8]} 24... Rfd8 {[%clk 0:01:49.1]}
25. Rfd4 {[%clk 0:01:28.2]} 25... Rxd4 {[%clk 0:01:47.9]} 26. Rxd4 {[%clk
0:01:30.1]} 26... Rc6 {[%clk 0:01:46.5]} 27. Rd8 {[%clk 0:01:20.4]} 27... Nh5
{[%clk 0:01:37.6]} 28. Rd7 {[%clk 0:01:16.9]} 28... Rf6 {[%clk 0:01:36.9]} 29.
Bd5 {[%clk 0:01:18.3]} 29... a5 {[%clk 0:01:31.1]} 30. Ra7 {[%clk 0:01:15.1]}
30... Nf4 {[%clk 0:01:25]} 31. Be4 {[%clk 0:01:13.2]} 31... a4 {[%clk 0:01:20]}
32. Rb7 {[%clk 0:01:14.4]} 32... Nh3 {[%clk 0:01:16.6]} 33. Rxb5 {[%clk
0:01:12.1]} 33... Nxf2 {[%clk 0:01:16.9]} 34. Bd5 {[%clk 0:01:13.1]} 34... Rf4
{[%clk 0:01:14.9]} 35. Rb7 {[%clk 0:01:11.2]} 35... h5 {[%clk 0:01:09.3]} 36.
Kc2 {[%clk 0:01:09.4]} 36... Rxh4 {[%clk 0:01:07.4]} 37. Rxf7+ {[%clk
0:01:07.5]} 37... Kh6 {[%clk 0:01:07.4]} 38. Ra7 {[%clk 0:01:08.6]} 38... Rd4
{[%clk 0:01:04.9]} 39. Bf7 {[%clk 0:01:04.1]} 39... h4 {[%clk 0:00:50.5]} 40.
Ra6 {[%clk 0:00:37.1]} 40... h3 {[%clk 0:00:50.2]} 41. Rxg6+ {[%clk 0:00:38.4]}
41... Kh7 {[%clk 0:00:49.7]} 42. Rg5 {[%clk 0:00:36.5]} 42... Rh4 {[%clk
0:00:48.3]} 43. f4 {[%clk 0:00:34.8]} 43... h2 {[%clk 0:00:43.3]} 44. Bd5 {[%clk
0:00:35.8]} 44... h1=Q {[%clk 0:00:40.7]} 45. Bxh1 {[%clk 0:00:37]} 45... Nxh1
{[%clk 0:00:40.6]} 46. Rf5 {[%clk 0:00:18.6]} 46... Ng3 {[%clk 0:00:38.5]} 47.
Rf7+ {[%clk 0:00:18.9]} 47... Kg6 {[%clk 0:00:37.8]} 48. Rf8 {[%clk 0:00:20]}
48... Nf5 {[%clk 0:00:37]} 49. b3 {[%clk 0:00:16.3]} 49... axb3+ {[%clk
0:00:35.8]} 50. Kxb3 {[%clk 0:00:18.2]} 50... Rxf4 {[%clk 0:00:33.5]} 51. Rg8+
{[%clk 0:00:16.4]} 51... Kf7 {[%clk 0:00:33.5]} 52. Rc8 {[%clk 0:00:18.3]} 52...
Ke7 {[%clk 0:00:33.3]} 53. Rc4 {[%clk 0:00:18.7]} 53... Rf3+ {[%clk 0:00:31.8]}
54. Kb4 {[%clk 0:00:18.3]} 54... Kd7 {[%clk 0:00:30.9]} 55. a4 {[%clk
0:00:19.3]} 55... Nd6 {[%clk 0:00:29]} 56. Rc3 {[%clk 0:00:18.2]} 56... Rf4+
{[%clk 0:00:27.4]} 57. Ka5 {[%clk 0:00:17.6]} 57... Rd4 {[%clk 0:00:25.9]} 58.
Rc5 {[%clk 0:00:16.2]} 58... Nb7+ {[%clk 0:00:24.8]} 59. Kb6 {[%clk 0:00:17.3]}
0-1

[Event "*** Titled Tuesday 3|2 Blitz"]
[Site "Chess.com"]
[Date "2017.03.07"]
[Round "3"]
[White "Fandorine"]
[Black "David_Klein"]
[Result "1-0"]
[WhiteElo "2617"]
[BlackElo "2430"]
[TimeControl "180+2"]
[EndTime "13:40:58 PST"]
[Termination "Fandorine won by resignation"]

1. e4 {[%clk 0:03:02]} 1... e5 {[%clk 0:02:59.6]} 2. Bc4 {[%clk 0:03:01]} 2...
Nf6 {[%clk 0:03:00.3]} 3. d3 {[%clk 0:03:02]} 3... Nc6 {[%clk 0:03:01.1]} 4. Nc3
{[%clk 0:03:00.1]} 4... Na5 {[%clk 0:03:02.1]} 5. Nge2 {[%clk 0:02:59.5]} 5...
c6 {[%clk 0:03:03]} 6. a3 {[%clk 0:02:43.4]} 6... Nxc4 {[%clk 0:03:03.3]} 7.
dxc4 {[%clk 0:02:44.5]} 7... d6 {[%clk 0:03:04.5]} 8. Qd3 {[%clk 0:02:43.8]}
8... Be7 {[%clk 0:03:04.8]} 9. O-O {[%clk 0:02:44.3]} 9... O-O {[%clk
0:03:06.4]} 10. h3 {[%clk 0:02:45.9]} 10... Be6 {[%clk 0:03:07.3]} 11. Rd1
{[%clk 0:02:47.1]} 11... Re8 {[%clk 0:02:59.3]} 12. b3 {[%clk 0:02:47]} 12...
Qc7 {[%clk 0:02:58.1]} 13. a4 {[%clk 0:02:46.8]} 13... Rad8 {[%clk 0:02:58.5]}
14. Ba3 {[%clk 0:02:39.2]} 14... d5 {[%clk 0:02:56.6]} 15. Bxe7 {[%clk
0:02:34.5]} 15... Qxe7 {[%clk 0:02:57.5]} 16. exd5 {[%clk 0:02:35.1]} 16... cxd5
{[%clk 0:02:58.7]} 17. cxd5 {[%clk 0:02:36.3]} 17... Nxd5 {[%clk 0:02:59.7]} 18.
Nxd5 {[%clk 0:02:37.6]} 18... Rxd5 {[%clk 0:03:00.6]} 19. Qe3 {[%clk 0:02:38.9]}
19... a6 {[%clk 0:02:54.1]} 20. Rxd5 {[%clk 0:02:39.1]} 20... Bxd5 {[%clk
0:02:55]} 21. Rd1 {[%clk 0:02:40.7]} 21... Bc6 {[%clk 0:02:55.6]} 22. Nc3 {[%clk
0:02:39.4]} 22... h6 {[%clk 0:02:54.1]} 23. Nd5 {[%clk 0:02:40]} 23... Qd6
{[%clk 0:02:42.1]} 24. c4 {[%clk 0:02:39]} 24... Qg6 {[%clk 0:02:35.6]} 25. Qd3
{[%clk 0:02:30.3]} 25... Qg5 {[%clk 0:02:29]} 26. a5 {[%clk 0:02:08.2]} 26... e4
{[%clk 0:01:48.1]} 27. Qe3 {[%clk 0:02:05.7]} 27... Qe5 {[%clk 0:01:49.2]} 28.
b4 {[%clk 0:01:31.6]} 28... Ba4 {[%clk 0:01:42.6]} 29. Rd2 {[%clk 0:01:21]}
29... Qa1+ {[%clk 0:01:34.4]} 30. Kh2 {[%clk 0:01:21.4]} 30... Bc6 {[%clk
0:01:23.2]} 31. Nc3 {[%clk 0:01:08.6]} 31... Qf1 {[%clk 0:01:10.5]} 32. Rd4
{[%clk 0:00:52]} 32... f5 {[%clk 0:01:00.3]} 33. Ne2 {[%clk 0:00:32.9]} 33...
Qe1 {[%clk 0:00:30.4]} 34. c5 {[%clk 0:00:26.9]} 34... Kh7 {[%clk 0:00:18.6]}
35. Ng3 {[%clk 0:00:23.6]} 35... Qxe3 {[%clk 0:00:14.4]} 36. fxe3 {[%clk
0:00:25.5]} 36... g6 {[%clk 0:00:15.2]} 37. Kg1 {[%clk 0:00:23.6]} 37... Re6
{[%clk 0:00:16.3]} 38. h4 {[%clk 0:00:23.2]} 38... Rf6 {[%clk 0:00:15.3]} 39.
Ne2 {[%clk 0:00:13.7]} 39... g5 {[%clk 0:00:16]} 40. hxg5 {[%clk 0:00:13.8]}
40... hxg5 {[%clk 0:00:17.9]} 41. Kf2 {[%clk 0:00:15.1]} 41... Kg6 {[%clk
0:00:19.2]} 42. Nc3 {[%clk 0:00:14.9]} 42... Re6 {[%clk 0:00:19.4]} 43. Rd8
{[%clk 0:00:15.7]} 43... f4 {[%clk 0:00:20.5]} 44. Ne2 {[%clk 0:00:16.9]} 44...
Kf5 {[%clk 0:00:20]} 45. Nd4+ {[%clk 0:00:18.1]} 45... Ke5 {[%clk 0:00:20.5]}
46. Nxe6 {[%clk 0:00:19.5]} 46... Kxe6 {[%clk 0:00:22.4]} 47. Rd6+ {[%clk
0:00:13.8]} 47... Kf5 {[%clk 0:00:23]} 48. Rd8 {[%clk 0:00:13.3]} 48... Ke5
{[%clk 0:00:23.4]} 49. Ke2 {[%clk 0:00:11.5]} 49... Kf5 {[%clk 0:00:24]} 50. Kf2
{[%clk 0:00:12.4]} 50... Kg4 {[%clk 0:00:25]} 51. Rd1 {[%clk 0:00:13.8]} 51...
Kf5 {[%clk 0:00:26.1]} 52. Rh1 {[%clk 0:00:14.9]} 52... Kg4 {[%clk 0:00:26.4]}
53. Rh8 {[%clk 0:00:15.2]} 53... Bd5 {[%clk 0:00:27.6]} 54. Rh6 {[%clk 0:00:15]}
54... Bc6 {[%clk 0:00:28.1]} 55. Rxc6 {[%clk 0:00:13.4]} 55... bxc6 {[%clk
0:00:28.9]} 56. b5 {[%clk 0:00:15]} 56... cxb5 {[%clk 0:00:27.2]} 57. c6 {[%clk
0:00:16.1]} 57... fxe3+ {[%clk 0:00:23.3]} 58. Kxe3 {[%clk 0:00:16.8]} 58... Kg3
{[%clk 0:00:23.6]} 59. c7 {[%clk 0:00:18.2]} 59... Kxg2 {[%clk 0:00:25.1]} 60.
c8=Q {[%clk 0:00:19.2]} 60... g4 {[%clk 0:00:27]} 61. Qxg4+ {[%clk 0:00:20.3]}
1-0

[Event "*** Titled Tuesday 3|2 Blitz"]
[Site "Chess.com"]
[Date "2017.03.07"]
[Round "3"]
[White "chessdude"]
[Black "denizozen"]
[Result "0-1"]
[WhiteElo "2426"]
[BlackElo "2472"]
[TimeControl "180+2"]
[EndTime "13:41:04 PST"]
[Termination "denizozen won by resignation"]

1. e4 {[%clk 0:03:02]} 1... e6 {[%clk 0:03:00.7]} 2. d4 {[%clk 0:03:02.5]} 2...
d5 {[%clk 0:03:01.2]} 3. Nd2 {[%clk 0:03:04]} 3... c5 {[%clk 0:03:02]} 4. Ngf3
{[%clk 0:03:03.4]} 4... cxd4 {[%clk 0:02:59.3]} 5. exd5 {[%clk 0:03:04.5]} 5...
Qxd5 {[%clk 0:03:00.1]} 6. Bc4 {[%clk 0:03:05.3]} 6... Qd6 {[%clk 0:03:00.9]} 7.
O-O {[%clk 0:03:06.2]} 7... Nf6 {[%clk 0:03:01.9]} 8. Nb3 {[%clk 0:03:07.3]}
8... Nc6 {[%clk 0:03:02.7]} 9. Nbxd4 {[%clk 0:03:08.6]} 9... Nxd4 {[%clk
0:03:03.9]} 10. Nxd4 {[%clk 0:03:10.3]} 10... a6 {[%clk 0:03:04.1]} 11. a4
{[%clk 0:03:06]} 11... Qc7 {[%clk 0:03:04.4]} 12. b3 {[%clk 0:03:04.1]} 12...
Bd6 {[%clk 0:03:03.7]} 13. Nf3 {[%clk 0:03:04.1]} 13... O-O {[%clk 0:03:00.3]}
14. Bb2 {[%clk 0:03:03.9]} 14... e5 {[%clk 0:03:00.9]} 15. h3 {[%clk 0:03:04.9]}
15... e4 {[%clk 0:02:38.4]} 16. Ng5 {[%clk 0:02:43.8]} 16... Bh2+ {[%clk
0:02:33.9]} 17. Kh1 {[%clk 0:02:44]} 17... Be5 {[%clk 0:02:24.1]} 18. Bxe5
{[%clk 0:02:36.6]} 18... Qxe5 {[%clk 0:02:26]} 19. Nxf7 {[%clk 0:02:37.5]} 19...
Rxf7 {[%clk 0:02:24.7]} 20. Qd8+ {[%clk 0:02:33.3]} 20... Qe8 {[%clk 0:02:24.2]}
21. Qxe8+ {[%clk 0:02:33]} 21... Nxe8 {[%clk 0:02:25]} 22. Rad1 {[%clk
0:02:33.8]} 22... Bf5 {[%clk 0:02:12.9]} 23. g4 {[%clk 0:02:25.6]} 23... Bg6
{[%clk 0:02:13.3]} 24. Rd7 {[%clk 0:02:23.7]} 24... b5 {[%clk 0:02:08.6]} 25.
Bd5 {[%clk 0:02:12.2]} 25... Nf6 {[%clk 0:01:52.8]} 26. Bxf7+ {[%clk 0:02:00]}
26... Bxf7 {[%clk 0:01:54.7]} 27. Rd6 {[%clk 0:01:56.9]} 27... bxa4 {[%clk
0:01:41.7]} 28. bxa4 {[%clk 0:01:58.8]} 28... h6 {[%clk 0:01:33.8]} 29. Kg2
{[%clk 0:01:57.6]} 29... Rc8 {[%clk 0:01:32.8]} 30. Re1 {[%clk 0:01:53.2]} 30...
Rxc2 {[%clk 0:01:31.2]} 31. Rxa6 {[%clk 0:01:53]} 31... Bd5 {[%clk 0:01:27]} 32.
Kg3 {[%clk 0:01:49.6]} 32... e3 {[%clk 0:01:13.9]} 33. Rxe3 {[%clk 0:01:44.8]}
33... Ne4+ {[%clk 0:01:05.9]} 34. Kf4 {[%clk 0:01:44]} 34... Nxf2 {[%clk
0:00:58.3]} 35. Ke5 {[%clk 0:01:43.3]} 35... Bg2 {[%clk 0:00:55.7]} 36. Kd6
{[%clk 0:01:23.4]} 36... Bxh3 {[%clk 0:00:52.5]} 37. Ra8+ {[%clk 0:01:15.8]}
37... Kh7 {[%clk 0:00:53]} 38. Ra7 {[%clk 0:01:14.4]} 38... Rd2+ {[%clk
0:00:46.2]} 39. Kc5 {[%clk 0:01:07.1]} 39... Bxg4 {[%clk 0:00:40.3]} 40. Ree7
{[%clk 0:01:07.7]} 40... h5 {[%clk 0:00:41.5]} 41. Rxg7+ {[%clk 0:01:08.1]}
41... Kh6 {[%clk 0:00:42.9]} 42. a5 {[%clk 0:01:00.6]} 42... Ne4+ {[%clk
0:00:40.3]} 43. Kb4 {[%clk 0:00:58.9]} 43... Be6 {[%clk 0:00:31.5]} 44. a6
{[%clk 0:00:55]} 44... Rb2+ {[%clk 0:00:31.4]} 45. Ka5 {[%clk 0:00:43.5]} 45...
Nd6 {[%clk 0:00:29]} 46. Rgc7 {[%clk 0:00:24.2]} 46... Rb5+ {[%clk 0:00:22]} 47.
Ka4 {[%clk 0:00:24.8]} 47... Bb3+ {[%clk 0:00:23.2]} 48. Ka3 {[%clk 0:00:25.1]}
48... Nc4+ {[%clk 0:00:24.2]} 49. Rxc4 {[%clk 0:00:26.4]} 49... Bxc4 {[%clk
0:00:26.1]} 50. Rc7 {[%clk 0:00:23.8]} 50... Bd5 {[%clk 0:00:25.9]} 51. a7
{[%clk 0:00:23.4]} 51... h4 {[%clk 0:00:24.2]} 52. Ka4 {[%clk 0:00:24.2]} 52...
Rb1 {[%clk 0:00:23.3]} 53. Ka5 {[%clk 0:00:18.4]} 53... h3 {[%clk 0:00:22.9]}
54. Rd7 {[%clk 0:00:19.9]} 54... Ra1+ {[%clk 0:00:22.7]} 55. Kb6 {[%clk
0:00:20.4]} 55... Bg2 {[%clk 0:00:24.3]} 56. Rd8 {[%clk 0:00:21.2]} 56... Kg7
{[%clk 0:00:21.9]} 57. Rd7+ {[%clk 0:00:21.8]} 57... Kg6 {[%clk 0:00:23.3]} 58.
Rd8 {[%clk 0:00:23.2]} 58... Kg5 {[%clk 0:00:23.1]} 59. Rg8+ {[%clk 0:00:24.2]}
59... Kf4 {[%clk 0:00:23.8]} 60. Rf8+ {[%clk 0:00:25.3]} 60... Kg3 {[%clk
0:00:24.9]} 61. Rg8+ {[%clk 0:00:26.8]} 61... Kf2 {[%clk 0:00:25.7]} 62. Rf8+
{[%clk 0:00:26]} 62... Kg1 {[%clk 0:00:26.8]} 0-1

[Event "*** Titled Tuesday 3|2 Blitz"]
[Site "Chess.com"]
[Date "2017.03.07"]
[Round "3"]
[White "rithwik2002"]
[Black "rpragchess"]
[Result "0-1"]
[WhiteElo "1788"]
[BlackElo "1568"]
[TimeControl "180+2"]
[EndTime "13:41:04 PST"]
[Termination "rpragchess won by resignation"]

1. d4 {[%clk 0:03:02]} 1... Nf6 {[%clk 0:03:00]} 2. c4 {[%clk 0:02:39.2]} 2...
g6 {[%clk 0:02:59.5]} 3. f3 {[%clk 0:02:39.7]} 3... Nh5 {[%clk 0:02:57.3]} 4.
Nc3 {[%clk 0:02:08.4]} 4... e5 {[%clk 0:02:55.3]} 5. g3 {[%clk 0:01:46]} 5...
Bg7 {[%clk 0:02:51.8]} 6. d5 {[%clk 0:01:42.2]} 6... f5 {[%clk 0:02:50.9]} 7.
Nh3 {[%clk 0:01:38]} 7... O-O {[%clk 0:02:50.2]} 8. Bg2 {[%clk 0:01:33.6]} 8...
d6 {[%clk 0:02:48.8]} 9. O-O {[%clk 0:01:30.7]} 9... f4 {[%clk 0:02:48.4]} 10.
g4 {[%clk 0:01:24.8]} 10... Nf6 {[%clk 0:02:41.3]} 11. Nf2 {[%clk 0:01:25.7]}
11... Nfd7 {[%clk 0:02:08.6]} 12. e3 {[%clk 0:01:15.1]} 12... Nc5 {[%clk
0:02:06.9]} 13. b4 {[%clk 0:01:03.6]} 13... Ncd7 {[%clk 0:02:02.9]} 14. Bd2
{[%clk 0:00:51.2]} 14... a5 {[%clk 0:02:00.2]} 15. a3 {[%clk 0:00:50.6]} 15...
Na6 {[%clk 0:02:00.6]} 16. Qb3 {[%clk 0:00:45.2]} 16... Kh8 {[%clk 0:01:39.8]}
17. Nce4 {[%clk 0:00:41.3]} 17... Nf6 {[%clk 0:01:34.4]} 18. exf4 {[%clk
0:00:40.5]} 18... exf4 {[%clk 0:01:34.1]} 19. Bc3 {[%clk 0:00:36.8]} 19... Bd7
{[%clk 0:01:22.8]} 20. Rae1 {[%clk 0:00:31.6]} 20... Kg8 {[%clk 0:01:09.8]} 21.
g5 {[%clk 0:00:28.4]} 21... Nxe4 {[%clk 0:01:08.4]} 22. Nxe4 {[%clk 0:00:27.3]}
22... Bf5 {[%clk 0:00:49.1]} 23. Bxg7 {[%clk 0:00:27.7]} 23... Kxg7 {[%clk
0:00:49.2]} 24. Qc3+ {[%clk 0:00:29.6]} 24... Kf7 {[%clk 0:00:50.4]} 25. h4
{[%clk 0:00:31.1]} 25... Re8 {[%clk 0:00:46.1]} 26. Nf6 {[%clk 0:00:26.6]} 26...
Rxe1 {[%clk 0:00:44.7]} 27. Rxe1 {[%clk 0:00:28.5]} 27... Qh8 {[%clk 0:00:36.1]}
28. c5 {[%clk 0:00:26.5]} 28... Qd8 {[%clk 0:00:35.2]} 29. Ne8 {[%clk
0:00:18.7]} 29... Qxe8 {[%clk 0:00:25.6]} 30. Rxe8 {[%clk 0:00:20.6]} 30... Rxe8
{[%clk 0:00:26.5]} 31. Qf6+ {[%clk 0:00:20.7]} 31... Kg8 {[%clk 0:00:26.7]} 32.
cxd6 {[%clk 0:00:21.9]} 32... cxd6 {[%clk 0:00:10.8]} 33. Qxd6 {[%clk
0:00:22.6]} 33... Bd3 {[%clk 0:00:11.9]} 34. Qxf4 {[%clk 0:00:22.3]} 34... Re1+
{[%clk 0:00:12.4]} 35. Kf2 {[%clk 0:00:22.4]} 35... Re2+ {[%clk 0:00:12.7]} 36.
Kg3 {[%clk 0:00:23.8]} 36... Bf5 {[%clk 0:00:11.5]} 37. b5 {[%clk 0:00:22.7]}
37... Nc5 {[%clk 0:00:12.2]} 38. Qb8+ {[%clk 0:00:23.5]} 38... Kg7 {[%clk
0:00:12.3]} 39. Qc7+ {[%clk 0:00:24.9]} 39... Nd7 {[%clk 0:00:13.9]} 40. d6
{[%clk 0:00:23.4]} 40... b6 {[%clk 0:00:13.6]} 41. Qc6 {[%clk 0:00:22.4]} 41...
Re5 {[%clk 0:00:07.4]} 42. Qc3 {[%clk 0:00:22.9]} 42... Kf7 {[%clk 0:00:07.8]}
43. f4 {[%clk 0:00:23.9]} 43... Rc5 {[%clk 0:00:08.9]} 44. Qd4 {[%clk
0:00:22.8]} 44... Nf8 {[%clk 0:00:08.4]} 45. Bd5+ {[%clk 0:00:23.3]} 45... Ke8
{[%clk 0:00:07.3]} 46. Qe5+ {[%clk 0:00:23.7]} 46... Be6 {[%clk 0:00:05.5]} 47.
Bc6+ {[%clk 0:00:21.3]} 47... Kf7 {[%clk 0:00:04.2]} 48. Qf6+ {[%clk 0:00:21.9]}
48... Kg8 {[%clk 0:00:05.5]} 49. h5 {[%clk 0:00:18.9]} 49... Rf5 {[%clk
0:00:05.2]} 50. Qe7 {[%clk 0:00:19.4]} 50... Rf7 {[%clk 0:00:06.2]} 51. Qd8
{[%clk 0:00:19.4]} 51... gxh5 {[%clk 0:00:07.6]} 52. Qxb6 {[%clk 0:00:18.4]}
52... Ng6 {[%clk 0:00:08.9]} 53. Qb8+ {[%clk 0:00:17.5]} 53... Kg7 {[%clk
0:00:09.4]} 54. Qd8 {[%clk 0:00:17]} 54... h4+ {[%clk 0:00:10.4]} 55. Kh2 {[%clk
0:00:16]} 55... Rxf4 {[%clk 0:00:11.5]} 56. d7 {[%clk 0:00:16.3]} 56... Rf2+
{[%clk 0:00:12.3]} 57. Kg1 {[%clk 0:00:17.3]} 57... Rd2 {[%clk 0:00:11.1]} 58.
Qe7+ {[%clk 0:00:17.7]} 58... Nxe7 {[%clk 0:00:10.7]} 0-1